Cogmind - Beta 16 @@@ ROGUE MODE // 2025.12.31 @ 03:46:25 Player: LYMPH NODE JONES Result: Destroyed by Y-45 Defender with Beam Rifle Performance ------------- Evolutions (1) 500 Regions Visited (3) 600 Robots Destroyed (7) 35 Value Destroyed (161) 161 Prototype IDs (0) 0 Alien Tech Used (0) 0 Bonus (0) 0 TOTAL SCORE: 1296 Bonus ------- None Cogmind --------- Core Integrity 0/400 Matter 278/300 Energy 100/100 System Corruption 0% Temperature Cool (9) Movement Core (50) Location -9/Materials Parts ------- > --- POWER (1) -------- (None) > --- PROPULSION (2) --- (None) > --- UTILITY (2) ------ (None) > --- WEAPON (4) ------- (None) > --- INVENTORY (5) ---- Light Ion Engine Light Ion Engine Light Ion Engine Peak State ------------ > --- POWER ------------ Improved Ion Engine > --- PROPULSION ------- Aluminum Leg Aluminum Leg > --- UTILITY ---------- Heat Sink Heat Sink > --- WEAPON ----------- EM Shotgun Assault Rifle Light Assault Rifle Grenade Launcher > --- INVENTORY -------- Light Ion Engine Light Ion Engine Light Ion Engine [Rating: 11] Favorites ----------- Power Light Ion Engine Engine Light Ion Engine Propulsion Aluminum Leg Leg Aluminum Leg Utility Heat Sink Device Heat Sink Weapon Assault Rifle Energy Gun EM Shotgun Ballistic Gun Assault Rifle Launcher Grenade Launcher Build | -11 -10 -10 -9 ------- Run | Yrd Mat Min Mat Slots Evolved 2 | . . . 2 Power . | . . . . Propulsion . | . . . . Utility . | . . . . Weapon 2 | . . . 2 Parts Attached 10 | 5 2 . 3 Power 2 | 1 . . 1 Engine 2 | 1 . . 1 Core . | . . . . Reactor . | . . . . Propulsion 2 | 2 . . . Treads . | . . . . Leg 2 | 2 . . . Wheel . | . . . . Hover . | . . . . Flight . | . . . . Utility 2 | . 2 . . Device 2 | . 2 . . Storage . | . . . . Processor . | . . . . Hackware . | . . . . Protection . | . . . . Artifact . | . . . . Weapon 4 | 2 . . 2 Energy Gun 1 | . . . 1 Energy Cannon . | . . . . Ballistic Gun 2 | 2 . . . Ballistic Cannon . | . . . . Launcher 1 | . . . 1 Special Weapon . | . . . . Impact Weapon . | . . . . Slashing Weapon . | . . . . Piercing Weapon . | . . . . Special Melee Weapon . | . . . . Unidentified Prototypes . | . . . . Parts Lost 9 | . . . 9 Power 1 | . . . 1 Propulsion 2 | . . . 2 Utility 2 | . . . 2 Weapon 4 | . . . 4 Highest Loss Streak 3 | . . . 3 To Critical Strikes . | . . . . Average Backups 2 | . 2 3 3 Power 1 | . 1 2 2 Propulsion . | . . . . Utility . | . . . . Weapon . | . . 1 . Tool/Special . | . . . . Unused Backups 2 | . . . 2 Power 2 | . . . 2 Propulsion . | . . . . Utility . | . . . . Weapon . | . . . . Tool/Special . | . . . . Average Slot Usage (%) 63 | . 78 100 52 Engine 9 | . 14 14 6 Leg 18 | . 28 28 12 Device 9 | . 7 28 8 Ballistic Gun 22 | . 28 28 18 Launcher 2 | . . . 4 Peak Build Rating 11 | 5 7 7 11 Average Rating 5 | 4 5 7 5 On Entrance 4 | . 5 7 7 Avg Prop Armor Cover (%) . | . . . . Naked Turns 57 | . . . 57 Heaviest Build 18 | 6 8 8 18 Greatest Support 20 | 20 20 20 20 Greatest Overweight (x) 1 | . . . 1 Average Overweight (x) . | . . . . Largest Inventory Capacity 5 | 5 5 5 5 Average Capacity 5 | 5 5 5 5 Most Carried 4 | 1 3 3 4 Average Carried 2 | . 2 3 3 Final Capacity 5 | 5 5 5 5 Final Carried 3 | 1 3 3 3 Class Distribution -------------------- 81% | Mutant 18% | Gunner Dominant Class ---------------- Mutant | -10/Materials Mutant | -10/Mines Mutant | -9/Materials Resources | -11 -10 -10 -9 ----------- Run | Yrd Mat Min Mat Matter Collected 330 | 191 55 . 84 Remotely . | . . . . Salvage Created 172 | . 55 . 117 Parts 23 | . 8 . 15 Haulers Intercepted . | . . . . Recyclers Shooed . | . . . . Parts Field Recycled . | . . . . Retrieved Matter . | . . . . Parts Self-Destructed . | . . . . Prevented . | . . . . Parts Restored . | . . . . Kills | -11 -10 -10 -9 ------- Run | Yrd Mat Min Mat Combat Hostiles Destroyed 5 | . 3 . 2 Guns 5 | . 3 . 2 Classes Destroyed 4 | . 1 . 3 Builder 1 | . . . 1 Watcher 1 | . . . 1 Swarmer 3 | . 3 . . Sentry 2 | . . . 2 Best Kill Streak 3 | . 3 . 2 Combat Bots Only 3 | . 3 . 1 Max Kills in Single Turn 1 | . 1 . 1 Gunslinging . | . . . . Exploded . | . . . . Melee . | . . . . Uniques/NPCs Destroyed . | . . . . Combat | -11 -10 -10 -9 -------- Run | Yrd Mat Min Mat Hostile Shots Fired 97 | . 10 . 87 Missed 34 | . 1 . 33 Hits 63 | . 9 . 54 Projectile 63 | . 9 . 54 Critical Strikes 3 | . . . 3 Damage Taken 1022 | . 66 . 956 Core 411 | . . . 411 Absorbed by Shields . | . . . . Core Remaining (%) 100 | 100 . 100 . Volleys Fired 24 | . 5 . 19 Largest 4 | . 2 . 4 Hottest 115 | . 40 . 115 Shots Fired 55 | . 10 . 45 Gun 49 | . 10 . 39 Cannon . | . . . . Launcher 6 | . . . 6 Special . | . . . . Kinetic 48 | . 10 . 38 Thermal . | . . . . Explosive 6 | . . . 6 Electromagnetic 1 | . . . 1 Robot Hit Streak 10 | . 2 . 10 Robot Miss Streak 2 | . 1 . 2 Penetration Max . | . . . . Secondary Targets 1 | . 1 . . Max Gunslinging Chain 1 | . 1 . . Shots Hit Robots 21 | . 6 . 15 Core Hits 22 | . 3 . 19 Critical Kills . | . . . . Critical Parts Destroyed . | . . . . Critical Strikes . | . . . . Melee Attacks . | . . . . Impact . | . . . . Slashing . | . . . . Piercing . | . . . . Sneak Attacks . | . . . . Combat Hostiles . | . . . . Follow-up Attacks . | . . . . Damage Inflicted 439 | . 76 . 363 Guns 288 | . 76 . 212 Cannons . | . . . . Explosions 89 | . . . 89 Melee . | . . . . Ramming 62 | . . . 62 Kinetic 288 | . 76 . 212 Thermal . | . . . . Explosive 89 | . . . 89 Electromagnetic . | . . . . Impact . | . . . . Slashing . | . . . . Piercing . | . . . . Highest Corruption . | . . . . Average Corruption . | . . . . Corruption Purged . | . . . . Corruption Blocked . | . . . . Overload Shots . | . . . . Overflow Damage 71 | . . . 71 Projectiles . | . . . . Explosions 71 | . . . 71 Melee . | . . . . Knockbacks 1 | . . . 1 Impact 1 | . . . 1 Kinetic . | . . . . Secondary . | . . . . Self-Inflicted Damage 177 | . . . 177 Shots 3 | . . . 3 Rammed 17 | . . . 17 Targets Rammed 17 | . . . 17 Kicked . | . . . . Crushed . | . . . . Highest Temperature 18 | . . . 18 Average Temperature 6 | . . . 6 Received Heat Transfer 330 | . . . 330 Siege Activations . | . . . . Martial Activations . | . . . . Shielding Activations . | . . . . Robots Disrupted . | . . . . Combat Hostiles . | . . . . Robots Corrupted . | . . . . Combat Hostiles . | . . . . Parts Fried . | . . . . Impact Corruptions . | . . . . Robots Melted . | . . . . Combat Hostiles . | . . . . Parts Melted . | . . . . Heat Transferred . | . . . . Parts Sabotaged . | . . . . Parts Stolen . | . . . . Parts Stripped . | . . . . Power Chain Reactions . | . . . . Alert | -11 -10 -10 -9 ------- Run | Yrd Mat Min Mat Maximum Alert Level . | . . . . Low Security (%) 100 | 100 100 100 100 Level 1 . | . . . . Level 2 . | . . . . Level 3 . | . . . . Level 4 . | . . . . Level 5 . | . . . . High Security . | . . . . Max Security . | . . . . Peak Influence 60 | . 60 . 45 Initial . | . . . . Average 8 | . 15 . 12 Influence Increases 281 | . 70 . 211 Destroy 0b10 Robot/C 100 | . 60 . 40 Destroy 0b10 Robot/NC 10 | . . . 10 Destroy Leader 32 | . 10 . 22 Disable Machine 30 | . . . 30 Destroy Structure 64 | . . . 64 Lose Combat Pursuer 45 | . . . 45 Influence Decreases 244 | . 70 . 174 Time Decay 194 | . 70 . 124 Lost Part 50 | . . . 50 Squads Dispatched . | . . . . Investigation . | . . . . Extermination . | . . . . Reinforcement . | . . . . Assault . | . . . . Garrison . | . . . . Intercept . | . . . . Searches Triggered . | . . . . Construction Impeded . | . . . . Haulers Reinforced . | . . . . Active Scanning Responses . | . . . . Cargo Convoy Interrupts . | . . . . Stealth | -11 -10 -10 -9 --------- Run | Yrd Mat Min Mat Distress Signals 1 | . . . 1 Communications Jammed . | . . . . Distress Signals . | . . . . Times Spotted 21 | . 4 . 17 Peak Tracking Total 9 | . 3 . 9 Tactical Retreats 1 | . . . 1 Traps | -11 -10 -10 -9 ------- Run | Yrd Mat Min Mat Traps Triggered . | . . . . Indirectly . | . . . . Trap Hack Attempts . | . . . . Triggered . | . . . . Disarmed . | . . . . Reprogrammed . | . . . . Reused . | . . . . Traps Extracted . | . . . . Installed . | . . . . Triggered . | . . . . Machines | -11 -10 -10 -9 ---------- Run | Yrd Mat Min Mat Machines Disabled 2 | . . . 2 Max in Single Turn 1 | . . . 1 Machines Repaired . | . . . . Machines Dismantled . | . . . . Machines Sabotaged . | . . . . Overloaded Fab Kills . | . . . . Hacking | -11 -10 -10 -9 --------- Run | Yrd Mat Min Mat Machines Accessed . | . . . . Terminals . | . . . . Fabricators . | . . . . Repair Stations . | . . . . Recycling Units . | . . . . Scanalyzers . | . . . . Garrison Access . | . . . . Total Hacks . | . . . . Successful . | . . . . Failed . | . . . . Catastrophic . | . . . . Database Lockouts . | . . . . Manual . | . . . . Terminals . | . . . . Fabricators . | . . . . Repair Stations . | . . . . Recycling Units . | . . . . Scanalyzers . | . . . . Garrison Access . | . . . . Terminal Hacks . | . . . . Fabricator Hacks . | . . . . Repair Station Hacks . | . . . . Recycling Unit Hacks . | . . . . Scanalyzer . | . . . . Garrison Access Hacks . | . . . . Unauthorized Hacks . | . . . . Terminals . | . . . . Fabricators . | . . . . Repair Stations . | . . . . Recycling Units . | . . . . Scanalyzers . | . . . . Garrison Access . | . . . . Data Cores Recovered . | . . . . Used . | . . . . Hacking Detections . | . . . . Full Trace Events . | . . . . Feedback Events . | . . . . Feedback Blocked . | . . . . Robot Schematics Acquired . | . . . . Robots Built . | . . . . Authchips . | . . . . Time . | . . . . Total Robot Build Rating . | . . . . Part Schematics Acquired . | . . . . Parts Built . | . . . . Authchips . | . . . . Time . | . . . . Total Part Build Rating . | . . . . Part Studies Acquired . | . . . . Parts Repaired . | . . . . Time . | . . . . Parts Recycled . | . . . . Recycled Matter . | . . . . Retrieved Matter . | . . . . Retrieved Components . | . . . . Parts Scanalyzed . | . . . . Part Schematics Acquired . | . . . . Parts Damaged . | . . . . Bothacking | -11 -10 -10 -9 ------------ Run | Yrd Mat Min Mat Used RIF Installer . | . . . . Robots Hacked . | . . . . Non-combat . | . . . . Combat . | . . . . Robot Hacks Applied . | . . . . Relay Couplers Released . | . . . . Fabnet Peak Effective % . | . . . . Robots Rewired . | . . . . Allies Hacked . | . . . . Hacks Repelled . | . . . . Allies | -11 -10 -10 -9 -------- Run | Yrd Mat Min Mat Total Allies . | . . . . Largest Group . | . . . . Highest-Rated Group . | . . . . Highest-Rated Ally . | . . . . Total Orders . | . . . . Ally Attacks . | . . . . Total Damage . | . . . . Kills . | . . . . Allies Corrupted . | . . . . Allies Melted . | . . . . Intel | -11 -10 -10 -9 ------- Run | Yrd Mat Min Mat Active Infowar (turns) . | . . . . Robot Analysis Total . | . . . . Derelict Logs Recovered . | . . . . Drone Launches . | . . . . Drone Recoveries . | . . . . Exploration | -11 -10 -10 -9 ------------- Run | Yrd Mat Min Mat Turns Passed 1054 | 372 239 20 423 Spaces Moved 596 | 91 183 17 305 Core 88 | 4 . . 84 Treads . | . . . . Legs 508 | 87 183 17 221 Wheels . | . . . . Hover . | . . . . Flight . | . . . . Fastest Speed 50 | 50 120 120 50 Average Speed 116 | 116 120 120 113 Slowest Speed 190 | 120 120 120 190 Overloaded Moves . | . . . . Propulsion Burnouts . | . . . . Robots Hopped . | . . . . Potential Cave-ins . | . . . . Cave-ins Triggered . | . . . . Exploration Rate (%) 18 | 6 30 9 28 Regions Visited 3 Branch Regions 1 Pre-discovered Areas . | . . . . Known Exits Taken . | . . . . Unknown Exits Taken 3 | 1 1 1 . Scrap Searched . | . . . . Spaces Dug . | . . . . Terrain Destroyed 71 | . . . 71 Melee . | . . . . Projectile . | . . . . AOE 71 | . . . 71 Terrain Rammed . | . . . . Walls Destroyed . | . . . . Machines Disabled . | . . . . Actions | -11 -10 -10 -9 --------- Run | Yrd Mat Min Mat Total 908 | 354 192 16 346 Wait 261 | 258 1 . 2 Move 593 | 90 182 16 305 Hop . | . . . . Pick Up 3 | 1 2 . . Fast Attach 8 | 5 2 . 1 Attach 1 | . . . 1 Detach . | . . . . Swap 1 | . . . 1 Drop . | . . . . Fire 24 | . 5 . 19 Melee . | . . . . Ram 17 | . . . 17 Kick . | . . . . Crush . | . . . . Escape Stasis . | . . . . Rewire . | . . . . Trap . | . . . . Miscellaneous . | . . . . Route ------- -11/Scrapyard -10/Materials -10/Mines -9/Materials History --------- Turn | Location | Event 10 | -11/Scrapyard | Discovered new exit (range 16) 373 | -11/Scrapyard | Entered Materials 374 | -10/Materials | Build established: Mutant 531 | -10/Materials | Discovered new exit (range 15) 612 | -10/Materials | Entered Mines 612 | -10/Mines | Discovered new exit (range 15) 632 | -10/Mines | Entered Materials 632 | -9/Materials | Evolved 2 slots: Weapon x2 914 | -9/Materials | Lost 3 parts (1p1u1w) 1011 | -9/Materials | Core integrity fell below 50% 1029 | -9/Materials | Lost 3 parts (1n2w) 1043 | -9/Materials | Core integrity fell below 20% 1055 | -9/Materials | Destroyed by Y-45 Defender with Beam Rifle Last Messages --------------- 00959_ K-01 Serf collects debris. 00966_ K-01 Serf cleans the Atomic Centrifuge. 00981_ Aluminum Leg destroyed. 00983_ W-16 Scout sends out distress signal. 00995_ Assault Rifle destroyed. 00998_ Lgt. Assault Rifle destroyed. 01001_ Slammed into G-34 Mercenary. 01007_ Electrolysis Chamber disabled. 01007_ Slammed into G-47 Trooper. 01008_ Destabilizing: Core damaged (-16). 01009_ Slammed into G-47 Trooper. 01022_ Slammed into O-16 Technician. 01044_ U-05 Engineer works on Matter Filter. 01044_ Slammed into G-34 Mercenary. 01044_ G-34 Mercenary knocked back. 01045_ G-34 Mercenary destroyed. 01045_ Slammed into G-47 Trooper. 01051_ Slammed into G-34 Mercenary. 01053_ Slammed into G-47 Trooper. Map ----- +----------------------------------------------------+ | ??????????????????????????????????????????????? | | ??????????????????????????????????????????????? | | ??????????????????????????????????????????????? | | ??????? ??????????????????????????#?????????? | | ??????? #???????????????????????? #?????????? | | ??????? #???????????############# #????!#???? | | ??????# #???????????# ### !#???? | | ??????# #???????????# !#???? | | ??????# #???????????# !#???? | | ??????# #???????????# !#????? | | ??????# #???????????# ###+#+##??????? | | ??????# #?############ #?????????????? | | ??????# #?? # #?????????????? | | ??????# #???""" "" %/g [[ #?????????????? | | ??????# #????""" "" # [ #?????????????? | | ??????# #????"""" # #?????????????? | | #+##### #?????"""" ?# #?????????????? | | % #?????"""""??# =! #?????????????? | | #?????? ???# =! #?????????????? | | #??????###???# #?????????????? | | ####### #???????## ### #?????????????? | | ??????# #???????# #?????????????? | | ??????# #???????# # """?????????? | | ??????# #???????# g / """?????????? | | ??????# #??#######+####/### # ?????? | | ??????# #??# g g@#?? ##/#####??????? | | ??????# #??# """ """ ""Y#?? ?????????? | | ??????# #????""" """ Y" #?? ????????? | | ??????# #??# """ """w"" #??? ?????????? | | ??????# #??# #??? ????????? | | ??????# #############+###?????### ????????? | | ??????# # [[[ ## #??????????? ?????????? | | ??????# # [[[ "T ## #?????????????????????? | | ??????# + [[[ %# #?????????????????????? | | ??######### !##* #?????????????????????? | | ### #######+####### #?????????????????????? | | #?????????????????????? | | / #?????????????????????? | | ?## # """" """ #?????????????????????? | | ######## """" """ #?????????????????????? | | # """" " " #########?????????????? | | "" """ + #?????????????? | | "" """ # #?????????????? | | "" """ # #?????????????? | | ##########################?????????????? | | ########??????????????????????????????????????? | | ??????????????????????????????????????????????? | | | | | | | +----------------------------------------------------+ Best States ------------- Heat Dissipation 48 Energy Generation 12 Energy Capacity 265 Matter Stores 300 Matter Capacity 300 Sight Range 16 Terrain Scan Density 10 Evasion (%) 55 Item Schematics ----------------- None Robot Schematics ------------------ None Fabricated ------------ Nothing Repaired ---------- Nothing Studied --------- None Alien Tech Used ----------------- None Achievements -------------- None Challenges ------------ None Game ------ Seed WeaponsSpectralStick Manual? 0 Play Time 00:09:39 Cumulative 2.6 hours Start 2025.12.22 @ 00:59:44 End 2025.12.31 @ 03:46:25 Sessions 1 Manual Loads 0 Difficulty Rogue Special Mode None Game No. 8 Rogue 8 Adventurer 0 Explorer 0 Win Type - Total 0 Types 0/0/0/0/0/0/0/0/0/0 Lore% 1 Gallery% 4 Achievement% 8 Wizard Run 0 Options --------- Layout 1 ASCII 0 Keyboard 0 Movement Arrows Keybinds 0 Fullscreen 1 Font 16/SmallcapsGlow Map View 50x40 Zoom Use 0% Tactical HUD 1 Map Filters NONE Filters NONE Steam SD RUN: 5f60be4e-41f3-41f6-9ca2-b150d5911c1c